[Event "Silves Open 2025"]
[Site "Fissul"]
[Date "2025.03.06"]
[Round "8.18"]
[White "Esteves, Goncalo Maria Franco"]
[Black "Almeida, Marta Dias"]
[Result "1-0"]
[Annotator "TA"]
[ECO "B10"]
[WhiteElo "1962"]
[BlackElo "1790"]
[PlyCount "83"]
[EventDate "2025.03.03"]
[EventType "swiss"]
[EventCountry "POR"]
[SourceTitle "playchess.com"]
[Source "ChessBase"]
[SourceQuality "1"]
[TimeControl "5400+30"]

{[%evp 14,83,71,68,89,18,37,26,35,24,70,60,144,86,110,77,84,77,99,83,202,187,187,209,222,27,183,195,191,201,197,186,210,147,231,79,76,75,85,-144,150,137,442,139,219,167,155,139,430,427,434,0,0,0,139,130,285,206,226,227,206,16,1027,989,29995,29996,29996,906,906,858,29997,29998]} 1. c4 {[%emt 0:00:09]} c6 {[%emt 0:00:08]} 2. e4 {[%emt 0:00:05]} d5 {[%emt 0:00:05]} 3. exd5 {[%emt 0:00:06]} cxd5 {[%emt 0:00:04]} 4. cxd5 {[%emt 0:00:06]} Nf6 {[%emt 0:00:09]} 5. Bb5+ {[%emt 0:00:09]} Bd7 {[%emt 0:00:34]} 6. Bc4 {[%emt 0:00:16]} Qc7 {[%emt 0:01:42]} 7. d3 {[%emt 0:03:38]} b5 {[%emt 0:03:09]} 8. Bb3 {[%emt 0:00:30]} g6 {[%emt 0:01:06] B10: Caro-Kann: 2 d3 and 2 c4.} 9. Ne2 {[%emt 0:01:53]} (9. Nf3 $16) 9... Bg7 {[%emt 0:00:59]} 10. Nbc3 {[%emt 0:02:36]} O-O $146 {[%emt 0:02:14] White has an edge.} (10... Qb7 11. O-O O-O 12. Nf4 Na6 13. Ne4 Rad8 14. Re1 Bf5 15. Qe2 Rfe8 16. f3 Nc7 17. Nxf6+ Bxf6 {½-½ Mentel,J-Kliewe,H Greifswalder op 1998 (3)}) 11. O-O {[%emt 0:01:47]} Na6 {[%emt 0:03:27] Black sacrificed a pawn} (11... a5 $11) 12. Ne4 $14 {[%emt 0:12:20]} Nh5 {[%emt 0:05:29]} ({Black should play} 12... Nc5 $14) 13. d4 {[%emt 0:04:48]} ({Better is} 13. Bg5) 13... Bf5 {[%emt 0:04:38]} 14. N2g3 {[%emt 0:02:47]} Nxg3 {[%emt 0:05:26]} 15. Nxg3 {[%emt 0:00:18]} Qd7 {[%emt 0:01:01]} 16. Bg5 {[%emt 0:10:30]} Nc7 {[%emt 0:14:19]} (16... Rfe8 $16) 17. Nxf5 $18 {[%emt 0:05:59]} gxf5 {[%emt 0:00:06]} 18. Qf3 {[%emt 0:12:27]} a5 {[%emt 0:09:24][%cal Ba7a5,Ba5a4][%mdl 32]} 19. Qg3 $2 {[%emt 0:11:10]} (19. Rfe1 $1 $18 {[%cal Re1e7]}) 19... Kh8 $2 {[%emt 0:00:41] [#]} (19... Ra6 $1 $11) 20. Bxe7 $1 {[%emt 0:03:01]} Qxe7 {[%emt 0:01:29]} 21. d6 {[%emt 0:00:16] White plays in the center} Qd7 {[%emt 0:00:19]} 22. dxc7 {[%emt 0:00:58]} a4 {[%emt 0:02:03]} 23. Bd1 {[%emt 0:02:40]} Rfc8 {[%emt 0:01:49]} (23... Rac8 $16) 24. Bf3 $2 {[%emt 0:05:18]} (24. Rc1 $1 $18) 24... Ra7 $16 {[%emt 0:00:36]} 25. d5 {[%emt 0:00:34][%cal Bd4d5,Bd5d6][%mdl 32]} Raxc7 {[%emt 0:00:31][%cal Oa4a3]} 26. Rfe1 $2 {[%emt 0:00:49]} (26. d6 $16 Rc2 27. Rae1) 26... Rd8 $2 {[%emt 0:03:09][%mdl 8192]} (26... Bxb2 27. Rad1 $16) (26... a3 $1 $17 {[%cal Ra3b2]} 27. Rad1 axb2 (27... Bxb2 $2 28. d6 $18)) 27. d6 {[%emt 0:03:06]} Rcc8 {[%emt 0:01:10][%mdl 8192] [#]} (27... f4 $16 {is a better chance.} 28. Qg5 (28. Qxf4 Rc4 $18) 28... Qxd6) 28. Rad1 $2 {[%emt 0:08:24]} (28. Re7 $1 $18 {[%cal Re7d7] and the rest is easy.} a3 (28... Qxd6 $2 29. Re8+ Rxe8 30. Qxd6 $18) 29. Rxd7 Rxd7 30. Qf4 axb2 31. Rd1) 28... Bf8 {[%emt 0:01:14]} (28... Re8 $16 29. Rxe8+ Rxe8) 29. Qe5+ {[%emt 0:00:49]} Kg8 {[%emt 0:00:29]} 30. Bh5 {[%emt 0:02:43] aiming for Rd3. White is much more active.} Bxd6 $2 {[%emt 0:01:35][%mdl 8192]} (30... Re8 $16 31. Qg3+ Bg7 32. Rxe8+ Rxe8) 31. Qf6 $18 {[%emt 0:00:23]} Qc7 {[%emt 0:00:41] [#]} 32. Bxf7+ $2 {[%emt 0:00:40]} Qxf7 $11 {[%emt 0:00:47]} 33. Rxd6 {[%emt 0:00:07]} Rxd6 {[%emt 0:00:45]} (33... Qxf6 $11 {remains equal.} 34. Rxf6 Rc2) 34. Qxd6 $16 {[%emt 0:00:08]} Qxa2 $2 $18 {[%emt 0:01:23][%mdl 4096] Endgame KQR-KQR} (34... Re8 $16 35. Qg3+ Kf8 36. Rxe8+ (36. Qd6+ Kg7 $16) 36... Qxe8) 35. Qd7 {[%emt 0:00:27]} Qc4 {[%emt 0:02:21]} 36. h3 {[%emt 0:00:57]} ({Much less strong is} 36. Qxf5 Qc5 37. Qe6+ (37. Re8+ $2 Rxe8 38. Qg4+ Kh8 $19) 37... Kh8 38. Qf6+ Kg8 39. Qe6+ Kh8 40. Qf6+ Kg8) 36... Rf8 {[%emt 0:00:31]} 37. Re3 $2 {[%emt 0:01:00]} (37. Qd6 $18) 37... f4 $2 {[%emt 0:04:11][%mdl 8192]} (37... Qc1+ $11 38. Kh2 Qxb2 39. Qd5+ Kh8) 38. Re7 {[%emt 0:00:54] Qg4+ would kill now.} Qc1+ {[%emt 0:00:05]} 39. Kh2 {[%emt 0:00:07]} Qxb2 {[%emt 0:00:59]} 40. Qg4+ {[%emt 0:00:38]} (40. Qe6+ $142 Kh8 41. Qh6 Rf7 42. Re8+ Rf8 43. Rxf8#) 40... Kh8 {[%emt 0:00:54]} 41. Qh5 {[%emt 0:00:19][%csl Ge7][%cal Rh5h7]} Qc2 {[%emt 0:03:01]} 42. Qe5+ {[%emt 0:00:10] Weighted Error Value: White=0.95/Black=1.13  Loses game:     	---       	Black=3      Missed win:     	White=4     	---        Mistake:       	White=4     	Black=9      Inaccurate:     	---       	Black=1      OK:         	White=8     	Black=4      Best:        	White=4     	Black=3} 1-0

[Event "Silves Open 2025"]
[Site "Fissul"]
[Date "2025.03.06"]
[Round "8.19"]
[White "Munno Moyano, Mario"]
[Black "Esteves, Goncalo Maria Franco"]
[Result "0-1"]
[Annotator "TA"]
[ECO "C91"]
[WhiteElo "1755"]
[BlackElo "1962"]
[PlyCount "130"]
[EventDate "2025.03.03"]
[EventType "swiss"]
[EventCountry "POR"]
[SourceTitle "playchess.com"]
[Source "ChessBase"]
[SourceQuality "1"]
[TimeControl "5400+30"]

{[%evp 23,130,22,29,18,52,37,36,-9,0,-1,0,-17,-17,-18,0,-2,-5,-31,0,0,0,-13,0,0,9,-47,-39,-35,-18,-38,-16,-30,-43,-38,-38,-63,-31,-318,-96,-198,-120,-132,-132,-128,-128,-154,-117,-152,-158,-162,-137,-207,-216,-215,-201,-200,-200,-231,-231,-231,-217,-218,-209,-241,-264,-256,-260,-282,-276,-336,-318,-310,0,-928,-938,-881,-880,-764,-758,-1364,-1343,-1265,-1255,-1646,-1548,-1144,-893,-1156,-1099,-1053,-1003,-29969,-29969,-29970,-29971,-6215,-3154,-29987,-29982,-29966,-5214,-5409,0,-29977,-29978,-29995,-29995,-29995,-29996]} 1. e4 {[%emt 1:31:00]} e5 {[%emt 1:31:00]} 2. Nf3 {[%emt 0:00:30]} Nc6 {[%emt 0:00:30]} 3. Bb5 {[%emt 0:00:30]} a6 {[%emt 0:00:30]} 4. Ba4 {[%emt 0:00:30]} Nf6 {[%emt 0:00:30]} 5. O-O {[%emt 0:00:30]} Be7 {[%emt 0:00:30]} 6. Re1 {[%emt 0:00:30]} b5 {[%emt 0:00:30]} 7. Bb3 {[%emt 0:00:30]} d6 {[%emt 0:00:30]} 8. c3 {[%emt 0:00:30]} O-O {[%emt 0:00:30]} 9. d4 {[%emt 0:00:30]} Bg4 {[%emt 0:00:30]} 10. Be3 {[%emt 0:00:30]} Na5 {[%emt 0:00:30]} 11. dxe5 {[%emt 0:00:30]} Bxf3 {[%emt 0:00:30]} 12. Qxf3 {[%emt 0:00:30]} dxe5 {[%emt 0:00:30]} 13. Nd2 {[%emt 0:00:30][%cal Bb1d2,Bd2f1,Bf1e3,Be3d5][%mdl 32] C91: Closed Ruy Lopez: 7...d6 8 c3 0-0 9 d4.} c5 {[%emt 0:00:30]} 14. Red1 $146 {[%emt 0:00:30]} (14. Qf5 Qc7 15. Nf3 c4 16. Bc2 Nc6 17. b4 cxb3 18. Bxb3 Rad8 19. Bg5 h6 20. Be3 Qd7 {½-½ Nytra,O (2151)-Fuksik,J (2114) CZE-chT1E 2324 2023 (4.6)}) 14... Qc7 {[%emt 0:00:30]} 15. c4 {[%emt 0:00:30] White is slightly better.} Nd7 {[%emt 0:00:30]} 16. Qe2 {[%emt 0:00:30]} b4 {[%emt 0:00:30]} 17. Nf1 {[%emt 0:00:30]} Rfd8 {[%emt 0:00:30]} 18. Bd2 {[%emt 0:00:30]} Nc6 {[%emt 0:00:30]} 19. Ne3 {[%emt 0:00:30]} Nd4 {[%emt 0:00:30]} 20. Qe1 {[%emt 0:00:30]} Nf8 {[%emt 0:00:30]} 21. Nd5 {[%emt 0:00:30]} Qd6 {[%emt 0:00:30]} 22. f4 {[%emt 0:00:30]} Nd7 {[%emt 0:00:30]} 23. Kh1 {[%emt 0:00:30]} Bf6 {[%emt 0:00:30]} 24. Qf2 {[%emt 0:00:30]} (24. f5 $11) 24... exf4 {[%emt 0:00:30]} 25. Bxf4 {[%emt 0:00:30]} Be5 {[%emt 0:00:30]} 26. g3 {[%emt 0:00:30]} Nf6 {[%emt 0:00:30] A dynamic duo of knights.} 27. Bxe5 {[%emt 0:00:30]} Qxe5 {[%emt 0:00:30]} 28. Nxf6+ {[%emt 0:00:30]} gxf6 {[%emt 0:00:30]} 29. Qf4 {[%emt 0:00:30]} Rd6 {[%emt 0:00:30] Black is more active.} (29... Qxf4 {simplifies} 30. gxf4 Kf8 31. Ba4 Rd6) 30. Rd2 $2 {[%emt 0:00:30][%mdl 8192]} (30. Qxe5 $15 fxe5 31. Ba4) 30... Re8 $2 {[%emt 0:00:30]} (30... Nxb3 $19 {has better winning chances.} 31. Rxd6 Qxf4 (31... Nxa1 $2 32. Qxe5 fxe5 33. Rd5 $19) 32. gxf4 Nxa1 33. Rxf6 Re8) 31. Ba4 {[%emt 0:00:30]} (31. Qxe5 $17 Rxe5 32. Bc2 Nxc2 33. Rxc2) 31... Qxe4+ {[%emt 0:00:30]} (31... Qxf4 $19 32. gxf4 Rxe4 33. Rg2+ Kf8) 32. Qxe4 {[%emt 0:00:30]} Rxe4 {[%emt 0:00:30]} 33. Rf1 {[%emt 0:00:30] Prevents Nf3.} Kg7 {[%emt 0:00:30][%cal Od4f5]} 34. Bd1 {[%emt 0:00:30]} Re3 {[%emt 0:00:30]} 35. b3 {[%emt 0:00:30]} Rde6 {[%emt 0:00:30]} 36. Rf4 {[%emt 0:00:30]} R6e4 {[%emt 0:00:30]} 37. Rg4+ {[%emt 0:00:30]} (37. Rxe4 $17 {was necessary.} Rxe4 38. Rd3) 37... Rxg4 $19 {[%emt 0:00:30]} 38. Bxg4 {[%emt 0:00:30][%mdl 4096] Endgame KRB-KRN. Black is a pawn up.} f5 {[%emt 0:00:30]} 39. Bh5 {[%emt 0:00:30]} a5 {[%emt 0:00:30]} 40. Rf2 {[%emt 0:00:30]} f6 {[%emt 0:00:30]} 41. Kg2 {[%emt 0:00:30]} Kh6 {[%emt 0:00:30]} 42. Bd1 {[%emt 0:00:30]} Kg6 {[%emt 0:00:30]} 43. h3 {[%emt 0:00:30]} Kf7 {[%emt 0:00:30]} 44. Bc2 {[%emt 0:00:30]} Ke6 {[%emt 0:00:30]} 45. Bd1 {[%emt 0:00:30]} Ke5 {[%emt 0:00:30]} 46. Bc2 {[%emt 0:00:30]} Rc3 {[%emt 0:00:30]} 47. Bb1 {[%emt 0:00:30]} Re3 $2 {[%emt 0:00:30]} (47... h6 $19 {[%cal Oa5a4] ...a4! is the strong threat.} 48. Rf1 Re3) 48. Rf4 $2 {[%emt 0:00:30][%mdl 8192] [#]} (48. Bc2 $11 a4 49. bxa4) 48... Rxg3+ $3 {[%emt 0:00:30][%mdl 512]} 49. Kxg3 {[%emt 0:00:30]} Ne2+ {[%emt 0:00:30]} 50. Kf3 {[%emt 0:00:30]} Nxf4 {[%emt 0:00:30] KB-KN. Black is two pawns up.} 51. h4 {[%emt 0:00:30]} h5 {[%emt 0:00:30]} 52. Bc2 {[%emt 0:00:30]} Ng6 {[%emt 0:00:30]} 53. Kg3 {[%emt 0:00:30]} f4+ {[%emt 0:00:30]} 54. Kh3 {[%emt 0:00:30]} Nf8 {[%emt 0:00:30]} 55. Bd1 {[%emt 0:00:30]} Ke4 {[%emt 0:00:30]} 56. Bxh5 {[%emt 0:00:30]} Ke3 {[%emt 0:00:30]} 57. Bd1 {[%emt 0:00:30]} f3 {[%emt 0:00:30]} 58. h5 {[%emt 0:00:30]} Nh7 {[%emt 0:00:30]} 59. Kg3 {[%emt 0:00:30]} Ng5 {[%emt 0:00:30] ( -> ...f2)} 60. h6 {[%emt 0:00:30]} f2 {[%emt 0:00:30]} 61. Kg2 {[%emt 0:00:30]} Nh7 {[%emt 0:00:30]} (61... f5 $142 62. Bc2 Ke2 63. Bd3+ Kxd3 64. Kxf2 Ke4 65. Kg3 f4+ 66. Kg4 Nh7 67. Kh5 f3 68. Kg6 f2 69. Kxh7 f1=Q (69... f1=R $2 70. Kg7 $19) 70. Kg7 Ke5 71. h7 Qf6+ 72. Kg8 Qg6+ 73. Kf8 Qxh7 74. a3 Ke6 75. axb4 Qh8#) 62. Kf1 {[%emt 0:00:30] [#]} Ng5 $2 {[%emt 0:00:30]} (62... f5 $1 $19 63. Bc2 Ng5 64. Bxf5 Nf3) 63. Bc2 $2 {[%emt 0:00:30][%mdl 8192]} (63. Kg2 $11 Ne4 64. h7) 63... Nf3 {[%emt 0:00:30] Black mates.} 64. h7 {[%emt 0:00:30]} Nd2+ {[%emt 0:00:30]} 65. Kg2 {[%emt 0:00:30]} f1=Q+ {Weighted Error Value: White=0.70/Black=0.28 (precise)   Loses game:     	White=2     	---        Missed win:     	---       	Black=2      Mistake:       	White=3     	Black=1      Inaccurate:     	White=2     	Black=3      OK:         	White=7     	Black=13     Best:        	White=1     	Black=1      Brilliant:      	---       	Black=1} (65... f1=R $2 66. h8=Q (66. h8=R $2 {is the wrong capture.} Rf2+ 67. Kh3 Nf1 $19) 66... Rf2+ 67. Kh3 $18) 0-1

[Event "Silves Open 2025"]
[Site "Fissul"]
[Date "2025.03.06"]
[Round "8.20"]
[White "Avelino, Camila Biscaya"]
[Black "Prata, Jose"]
[Result "0-1"]
[Annotator "TA"]
[ECO "C01"]
[WhiteElo "1906"]
[BlackElo "1839"]
[PlyCount "146"]
[EventDate "2025.03.03"]
[EventType "swiss"]
[EventCountry "POR"]
[SourceTitle "playchess.com"]
[Source "ChessBase"]
[SourceQuality "1"]
[TimeControl "5400+30"]

{[%evp 12,146,11,6,22,8,10,15,29,0,0,-14,18,14,21,14,13,18,33,9,39,28,35,26,22,16,111,122,154,161,179,142,133,26,24,18,33,-40,-21,-34,-7,-45,-25,-60,-52,-107,-39,-31,0,-89,-12,-42,-44,-55,-4,-20,-14,-31,-18,-19,-16,-18,0,0,0,0,0,-71,-71,-79,-71,-663,-654,-29978,-29979,-29978,-29979,-29978,-29960,-29967,-29965,-29972,-6303,-29981,0,-5381,-1777,-29980,-29970,-29969,-29972,-29971,-342,-342,-342,-342,-342,-342,-342,-342,-342,-342,-342,-342,-335,-335,-335,-328,-328,-335,-328,-328,-328,-376,-328,-5085,-328,-320,-320,-940,-320,-313,-313,-306,-306,-306,-238,-1209,-238,-238,-238,-29983,-29983,-29983,-29984,-29984,-29985]} 1. e4 {[%emt 1:31:00]} e6 {[%emt 1:31:00][%cal Be7e6,Be6d5][%mdl 32]} 2. d4 {[%emt 0:00:30]} d5 {[%emt 0:00:30]} 3. exd5 {[%emt 0:00:30]} exd5 {[%emt 0:00:30]} 4. Nf3 {[%emt 0:00:30]} Bd6 {[%emt 0:00:30]} 5. c4 {[%emt 0:00:30]} Nf6 {[%emt 0:00:30]} 6. Nc3 {[%emt 0:00:30]} c6 {[%emt 0:00:30]} 7. Bd3 {[%emt 0:00:30]} dxc4 {[%emt 0:00:30] C01: French: Exchange Variation.} 8. Bxc4 {[%emt 0:00:30]} O-O {[%emt 0:00:30]} 9. O-O {[%emt 0:00:30]} Nbd7 {[%emt 0:00:30] The position is equal.} 10. Qc2 {[%emt 0:00:30]} Nb6 {[%emt 0:00:30]} 11. Bd3 {[%emt 0:00:30]} Nbd5 $146 {[%emt 0:00:30]} ({Predecessor:} 11... h6 12. Re1 Be6 13. Ne4 Nxe4 14. Bxe4 Bd5 15. a3 Qf6 {0-1 Yang,Z-Feng,Z Belt and Road Hunan op-C 2019 (3)}) 12. Nxd5 {[%emt 0:00:30]} cxd5 {[%emt 0:00:30]} 13. Bg5 {[%emt 0:00:30]} h6 {[%emt 0:00:30] The position is symmetric and equal} 14. Bh4 {[%emt 0:00:30]} Be6 {[%emt 0:00:30]} 15. Ne5 {[%emt 0:00:30]} Rc8 {[%emt 0:00:30]} 16. Qe2 {[%emt 0:00:30]} Be7 {[%emt 0:00:30]} 17. f4 {[%emt 0:00:30][%cal Bf2f4,Bf4f5][%mdl 32]} Re8 {[%emt 0:00:30]} 18. Rae1 {[%emt 0:00:30]} Ne4 {[%emt 0:00:30]} 19. Bxe7 $1 $16 {[%emt 0:00:30]} Rxe7 {[%emt 0:00:30]} 20. f5 $1 {[%emt 0:00:30]} Bd7 {[%emt 0:00:30]} 21. Bxe4 {[%emt 0:00:30]} dxe4 {[%emt 0:00:30]} 22. Qxe4 {[%emt 0:00:30]} (22. f6 $1 $16 {[%cal Rf6e7]} Re8 23. fxg7 (23. Qxe4 gxf6 24. Re3 fxe5 $11)) 22... f6 $11 {[%emt 0:00:30]} 23. Qd5+ {[%emt 0:00:30]} Kh7 {[%emt 0:00:30]} 24. Nxd7 {[%emt 0:00:30]} (24. Ng6 $14 Re8 25. b3 (25. Qxb7 $2 Rxe1 26. Rxe1 Bxf5 $19)) 24... Rxd7 $15 {[%emt 0:00:30]} 25. Qb3 {[%emt 0:00:30]} b6 $36 {[%emt 0:00:30][%mdl 2048] Black has some pressure.} 26. Qa3 {[%emt 0:00:30]} a5 {[%emt 0:00:30]} 27. Qb3 {[%emt 0:00:30]} Rxd4 {[%emt 0:00:30]} 28. Re6 {[%emt 0:00:30] [#]} (28. Qg3 $15) 28... Rb4 {[%emt 0:00:30]} (28... Rd2 $1 $17 29. Qg3 Qd7 (29... Rxb2 $2 30. Qg6+ Kg8 31. Rfe1 $18)) 29. Qg3 $1 {[%emt 0:00:30] and Qg6+ would now be decisive} Rd4 {[%emt 0:00:30]} (29... Rxb2 30. Rfe1 g5 (30... Rxa2 $2 31. Qg6+ Kh8 32. Re8+ $18) (30... Qd4+ $2 31. Kh1 $18) 31. fxg6+ Kg8 32. h3 $18) (29... Qd4+ $15 30. Kh1 Qg4 (30... Rxb2 $2 31. Rfe1 $18) 31. Qxg4 Rxg4) 30. Qb3 $17 {[%emt 0:00:30]} a4 {[%emt 0:00:30]} (30... Rd2 $17 {Strongly threatening ...Qd4+.} 31. Qg3 Kh8 (31... Rxb2 32. Qg6+ Kg8 33. Rfe1 $18)) 31. Qf3 {[%emt 0:00:30]} Rd2 {[%emt 0:00:30][%cal Oc8c2] Black attacks} 32. Qh5 {[%emt 0:00:30]} Rdc2 {[%emt 0:00:30] Black plays on the queen side and is better} (32... Rxb2 $2 33. Rfe1 Qd4+ (33... Rxa2 $2 34. Qg6+ Kh8 35. Re8+ $18) 34. Kh1 $18) ({Black should try} 32... Qd4+ $1 $15 33. Kh1 Qxb2 (33... Rxb2 $2 34. Qg6+ Kh8 35. Rfe1 $18) 34. Qg6+ Kh8 35. Re8+ Rxe8 36. Qxe8+ Kh7 37. Qg6+ Kg8 38. Qe8+ Kh7) 33. Rfe1 {[%emt 0:00:30]} Rc1 {[%emt 0:00:30]} (33... Rxb2 $2 34. Qg6+ Kh8 35. Re8+ $18) 34. h3 {[%emt 0:00:30]} (34. Qg6+ $5 Kg8 35. Qe8+ Qxe8 36. Rxe8+ Rxe8 37. Rxc1 $15) 34... Rxe1+ {[%emt 0:00:30]} 35. Rxe1 $15 {[%emt 0:00:30][%mdl 4096] Endgame KQR-KQR} b5 {[%emt 0:00:30]} 36. Qf7 {[%emt 0:00:30]} b4 {[%emt 0:00:30]} (36... Qd4+ 37. Kh1 $17) 37. Kh1 {[%emt 0:00:30]} a3 {[%emt 0:00:30]} 38. bxa3 {[%emt 0:00:30]} bxa3 {[%emt 0:00:30]} 39. Qb3 {[%emt 0:00:30]} (39. Qg6+ $11 {remains equal.} Kh8 40. Qg3) 39... Qd2 $17 {[%emt 0:00:30]} 40. Qg3 {[%emt 0:00:30]} Qxa2 {[%emt 0:00:30] Active counter play!} 41. Qg6+ $2 {[%emt 0:00:30][%mdl 8192]} (41. Kh2 $17) 41... Kh8 $19 {[%emt 0:00:30]} 42. Re8+ {[%emt 0:00:30]} Rxe8 {[%emt 0:00:30]} 43. Qxe8+ {[%emt 0:00:30] KQ-KQ. Black is a pawn up.} Qg8 {[%emt 0:00:30]} 44. Qa4 {[%emt 0:00:30]} Qf8 {[%emt 0:00:30]} 45. h4 {[%emt 0:00:30]} Qe7 {[%emt 0:00:30]} 46. Kh2 {[%emt 0:00:30]} Qe5+ {[%emt 0:00:30]} (46... Kh7 $142 47. Kh3 Qe3+ 48. g3 Qf3 49. Qa6 Qb3 (49... Qxf5+ $2 50. g4 $19) 50. Qe6 Qxe6 51. fxe6 Kg8 52. g4 a2 53. Kg2 a1=Q (53... a1=B $2 54. Kg3 $19) 54. Kf3 Qe5 55. Kf2 Qxe6 56. Kf3 Qe5 57. g5 fxg5 58. hxg5 hxg5 (58... Qxg5 59. Ke2 Qg3 60. Kd2 h5 61. Ke2 h4 62. Kd2 h3 63. Ke2 h2 64. Kd2 h1=Q 65. Kc2 Qhh2+ 66. Kd1 Qgg1#) 59. Kf2 g4 60. Kg2 Qf4 61. Kg1 Qd2 (61... Kh7 62. Kg2 g5 63. Kh1 Qf1+ 64. Kh2 Kg7 65. Kg3 Qg1#) 62. Kh1 g3 63. Kg1 Qh2+ 64. Kf1 Qf2#) 47. Kh1 {[%emt 0:00:30]} Qe7 {[%emt 0:00:30]} (47... Qxf5 48. Qxa3 Kh7 49. Qe3 $15) (47... Qa1+ $142 48. Kh2 Kh7 49. g4 a2 50. g5 Qe5+ (50... hxg5 $2 51. hxg5 fxg5 52. Qe8 $19) (50... fxg5 $2 51. Kg2 $19) 51. Kg2 a1=Q (51... a1=B 52. g6+ Kh8 53. Qa8+) 52. Qxa1 Qxa1 53. gxf6 Qxf6 54. Kf3 Qxf5+ (54... Qxh4 $2 55. Ke3 $19) 55. Ke3 g5 56. hxg5 hxg5 57. Ke2 g4 58. Ke3 g3 (58... Qf3+ 59. Kd4 g3 60. Kc5 g2 61. Kc4 g1=Q 62. Kb5 Qd5+ 63. Kb4 Qgc5+ 64. Ka4 Qd1#) 59. Kd4 g2 60. Kc4 g1=Q (60... g1=B 61. Kc3 Qc5+ 62. Kd3 Kg6 63. Kd2 Qc4 64. Kd1 Be3 65. Ke1 Qc2 66. Kf1 Qf2#) 61. Kc3 Qc1+ 62. Kb4 Qfc5+ 63. Kb3 Q5c4#) 48. Kh2 {[%emt 0:00:30]} Kh7 {[%emt 0:00:30] ( -> ...Qe5+)} 49. Kh1 {[%emt 0:00:30]} Qe3 {[%emt 0:00:30]} 50. Kh2 {[%emt 0:00:30]} h5 {[%emt 0:00:30]} 51. Kh1 {[%emt 0:00:30] [#]} a2 $2 {[%emt 0:00:30]} 52. Qxa2 {[%emt 0:00:30]} Qe1+ {[%emt 0:00:30]} 53. Kh2 {[%emt 0:00:30]} Qxh4+ {[%emt 0:00:30]} 54. Kg1 {[%emt 0:00:30]} Qe1+ {[%emt 0:00:30]} 55. Kh2 {[%emt 0:00:30]} Qe5+ {[%emt 0:00:30]} 56. Kg1 {[%emt 0:00:30]} Qxf5 {[%emt 0:00:30]} 57. Qc4 {[%emt 0:00:30]} Kg6 {[%emt 0:00:30]} 58. Qg8 {[%emt 0:00:30]} Qc5+ {[%emt 0:00:30]} 59. Kh2 {[%emt 0:00:30]} Qe5+ {[%emt 0:00:30]} 60. Kh1 {[%emt 0:00:30]} h4 {[%emt 0:00:30]} 61. Qc8 {[%emt 0:00:30]} Kg5 {[%emt 0:00:30][%cal Oh4h3]} 62. Qd7 {[%emt 0:00:30]} g6 {[%emt 0:00:30]} 63. Qd3 $2 {[%emt 0:00:30]} (63. Qd2+ Kg4 64. Qd7+ Qf5 65. Qd1+ Kg5 66. Qd2+ Qf4 67. Qa5+ Kh6 68. Qe1) 63... Qf5 $2 {[%emt 0:00:30]} (63... Qe1+ 64. Kh2 Qe5+ 65. Kh1 Qe7 66. Qd2+ Kh5 67. Qd1+ Kh6 68. Qc1+ Kg7) 64. Qe3+ {[%emt 0:00:30]} Qf4 {[%emt 0:00:30]} 65. Qe6 $2 {[%emt 0:00:30]} (65. Qe1) 65... f5 $2 {[%emt 0:00:30]} (65... h3 {( -> ...Qf1+)} 66. gxh3 Kh4) 66. Qe7+ {[%emt 0:00:30]} Kh5 {[%emt 0:00:30]} 67. Qe2+ {[%emt 0:00:30]} Qg4 {[%emt 0:00:30]} 68. Qe8 {[%emt 0:00:30]} Qe4 {[%emt 0:00:30]} 69. Qd8 $2 {[%emt 0:00:30]} (69. Qh8+ Kg4 70. Qf6) 69... g5 $2 {[%emt 0:00:30]} (69... h3 {[%csl Gh3][%cal Re4g2]} 70. Qh8+ Kg5 71. Qd8+ Kg4 72. Qd1+ Kh4 73. Qd8+ g5 74. Qh8+ Kg3 75. Qc3+ Kf2 76. Qc5+ Ke2 77. Qb5+ Ke3 78. Qc5+ Kf4 79. Qf2+ Kg4) 70. Qh8+ {[%emt 0:00:30]} Kg4 {[%emt 0:00:30] ( -> ...Qe3)} 71. Qh6 $2 {[%emt 0:00:30]} (71. Qc3 $19) 71... Qe1+ {[%emt 0:00:30] Black mates.} 72. Kh2 {[%emt 0:00:30]} Qg3+ {[%emt 0:00:30]} 73. Kg1 {[%emt 0:00:30]} h3 {[%emt 0:00:30] Black used his chance.   Weighted Error Value: White=0.52/Black=0.54  Loses game:     	White=1     	---        Mistake:       	White=8     	Black=8      Inaccurate:     	White=6     	Black=3      OK:         	White=13    	Black=16     Best:        	White=1     	Black=4      Strong:       	White=3     	---} 0-1